bitfinex/quotes_ETHUSD_20241103
["timestamp","ask_amount","ask_price","bid_price","bid_amount"]
[1730604139392,4.92965,2438.1,2437.5,4.10255]
[1730604139742,4.92965,2438.1,2437.1,4.96043913]
[1730604139743,4.10251,2437.6,2437.1,4.96043913]
[1730604139950,4.10251,2437.6,2437.2,4.10304]
[1730604140725,4.10218,2437.8,2437.1,4.10313]
[1730604140726,4.10223,2437.7,2437.1,4.10313]
[1730604141072,1.321065,2438.1,2437.6,4.1023]
[1730604141073,0.8281,2438.1,2437.6,4.1023]
[1730604141274,4.92968,2438.1,2437.6,4.1023]
[1730604141758,4.10159,2438.1,2437.7,4.10221]
[1730604142118,0.7879,2437.9,2437.1,4.10312]
[1730604142347,0.7879,2437.9,2437.2,4.10306]
[1730604142348,4.1023,2437.7,2437.2,4.10306]
[1730604142559,0.7879,2437.9,2437.2,4.10306]
[1730604142560,4.10214,2437.8,2437.3,4.10282]
[1730604143050,4.10254,2437.6,2437.1,4.10321]
[1730604143374,0.7879,2437.9,2437.0,4.10331]
[1730604143375,4.10265,2437.5,2437.0,4.10331]
[1730604143536,4.10222,2437.7,2436.9,3.0]
[1730604143723,4.10273,2437.4,2436.9,3.0]
[1730604143928,4.10302,2437.3,2436.9,3.0]
[1730604144431,0.7879,2437.5,2436.9,7.10356]
[1730604144739,4.512732,2437.6,2437.0,0.08206218]
[1730604144940,4.10251,2437.6,2437.0,0.08206218]
[1730604145148,4.10251,2437.6,2437.1,4.10316]
[1730604145568,4.1022,2437.8,2437.4,4.10262]
[1730604145860,4.10217,2437.8,2437.3,4.1028]
[1730604146169,4.10214,2437.8,2437.3,4.1028]
[1730604146329,4.10189,2437.9,2437.4,4.10264]
[1730604146662,8.20388,2437.9,2437.4,4.10264]
[1730604147511,4.88964,2438.0,2437.5,4.10245]
[1730604147719,4.10167,2438.1,2437.6,4.10238]
[1730604148004,4.10167,2438.1,2437.7,4.10212]
[1730604148189,4.10167,2438.1,2437.6,4.10238]
[1730604148190,4.10166,2438.1,2437.6,4.10238]
[1730604148367,4.10166,2438.1,2437.6,4.922817]
[1730604148807,0.7879,2438.2,2437.7,4.10222]
[1730604148975,4.88936,2438.2,2437.7,4.10222]
[1730604149174,0.84672627,2438.4,2437.8,4.10204]
[1730604149397,5.73560627,2438.5,2438.0,4.1016]
[1730604149582,4.10108,2438.4,2437.9,4.10186]
[1730604150104,4.94744627,2438.6,2438.1,4.10152]
[1730604150275,4.10072,2438.6,2438.1,4.10152]
[1730604150474,0.84672627,2438.7,2438.6,4.10071]
[1730604150673,1.69345255,2439.0,2438.6,4.10071]
[1730604150674,0.84672627,2439.0,2438.7,4.10054]
[1730604151128,0.84672627,2439.1,2438.7,4.10054]
[1730604151429,1.11041457,2439.1,2438.6,4.10071]
[1730604151627,1.11041457,2439.1,2438.3,6.86054574]
[1730604151628,4.10045,2438.8,2438.3,4.10119]
[1730604151990,0.84672627,2439.0,2438.1,4.10142]
[1730604152228,0.84672627,2439.0,2437.9,4.10179]
[1730604152229,4.10105,2438.4,2437.9,4.10179]
[1730604152404,4.10088,2438.5,2438.0,4.10162]
[1730604152602,4.10104,2438.5,2437.9,4.10179]
[1730604152791,4.84770457,2438.5,2437.9,8.20357]
[1730604153127,4.84770457,2438.5,2437.9,4.10178]
[1730604153428,4.10168,2438.1,2437.5,4.10245]
[1730604153598,4.10183,2438.0,2437.5,4.10245]
[1730604153791,4.10183,2438.0,2437.5,8.20492]
[1730604154100,4.1013,2438.3,2437.8,4.10202]
[1730604154314,4.1013,2438.3,2437.8,8.20404]
[1730604154596,4.1013,2438.3,2437.9,4.10187]
[1730604154855,8.20267,2438.3,2437.7,4.10214]
[1730604155386,8.20261,2438.3,2437.7,4.10214]
[1730604156596,4.1013,2438.3,2437.8,4.10189]
[1730604156924,4.1013,2438.3,2437.9,4.10184]
[1730604157134,5.70027812,2438.5,2438.0,4.10168]
[1730604157289,0.84672627,2438.5,2437.8,0.41839247]
[1730604157494,2.06688941,2438.6,2438.2,8.20274]
[1730604157495,0.7968,2438.6,2438.2,8.20274]
[1730604157696,4.89762,2438.6,2438.1,4.10155]
[1730604158328,0.7968,2438.6,2438.2,4.10129]
[1730604158646,4.94727627,2438.7,2438.2,4.10129]
[1730604158647,4.10055,2438.7,2438.2,4.10129]
[1730604159002,4.94727627,2438.7,2438.2,4.10129]
[1730604159210,4.10055,2438.7,2438.2,4.921574]
[1730604159708,0.84672627,2438.7,2438.4,4.1009]
[1730604159904,0.84672627,2438.8,2438.4,4.1009]
[1730604160108,0.84672627,2438.8,2438.3,8.20232]
[1730604160310,4.94705627,2438.9,2438.3,8.20232]
[1730604160536,4.94705627,2438.9,2438.3,5.0033804]
[1730604160700,4.94705627,2438.9,2438.4,4.10102]
[1730604161906,0.84672627,2438.8,2438.3,4.10112]
[1730604162338,4.94702627,2438.9,2438.4,4.101]
[1730604162810,9.04731627,2438.9,2438.4,4.101]
[1730604163210,9.04730627,2438.9,2438.4,4.101]
[1730604163431,4.94701627,2438.9,2438.4,8.20196]
[1730604164116,4.94701627,2438.9,2438.4,4.10096]
[1730604164536,4.94701627,2438.9,2438.4,8.20192]
[1730604164849,4.94701627,2438.9,2438.7,4.10045]
[1730604164850,0.84672627,2438.9,2438.7,4.10045]
[1730604165003,0.84672627,2438.9,2438.8,4.10037]
[1730604165908,0.84672627,2438.9,2438.8,7.18237408]
[1730604166373,0.84672627,2438.9,2438.8,7.11037]
[1730604166576,1.27008941,2439.0,2438.9,8.232282]
[1730604166781,9.41e-06,2439.0,2438.9,11.49118756]
[1730604166939,1.69345255,2439.1,2439.0,7.11004]
[1730604168273,4.20082074,2440.1,2439.8,4.09854]
[1730604168940,4.20082074,2440.1,2439.7,4.09875]
[1730604169679,4.20082074,2440.1,2439.9,4.09851]
[1730604170190,0.7968,2440.2,2439.7,4.09879]
[1730604170338,4.89483,2440.2,2439.7,4.09879]
[1730604170534,5.794107,2440.2,2439.7,4.09879]
[1730604171286,1.696077,2440.2,2439.7,4.09879]
[1730604171471,1.696077,2440.2,2439.8,4.09869]
[1730604171665,1.696077,2440.2,2439.7,4.09879]
[1730604171877,4.09822,2440.1,2439.6,4.09902]
[1730604172046,5.794197,2440.2,2439.7,4.09886]
[1730604174493,4.09819,2440.1,2439.6,4.09902]
[1730604174646,5.794197,2440.2,2439.5,4.09907]
[1730604174849,5.794197,2440.2,2439.7,4.09885]
[1730604175091,9.892317,2440.2,2439.7,4.09885]
[1730604175392,5.794197,2440.2,2439.7,4.09885]
[1730604175759,9.892307,2440.2,2439.7,4.09885]
[1730604175990,8.99303,2440.2,2439.7,4.09885]
[1730604176195,4.89491,2440.2,2439.7,4.09885]
[1730604176495,8.99304,2440.2,2439.7,4.09885]
[1730604176862,4.89491,2440.2,2439.5,4.808977]
[1730604177050,4.89491,2440.2,2439.6,4.099]
[1730604177051,4.09828,2440.1,2439.6,4.099]
[1730604177271,4.09828,2440.1,2439.6,4.9897977]
[1730604177472,4.09828,2440.1,2439.6,0.8907977]
[1730604177676,4.09828,2440.1,2439.7,4.09883]
[1730604178991,0.7797,2439.7,2439.3,4.0995]
[1730604179202,0.7797,2439.7,2439.3,4.09953]
[1730604179355,0.7797,2439.7,2439.3,4.919445]
[1730604179852,4.0985,2440.0,2439.5,4.09904]
[1730604180191,0.7797,2440.0,2439.7,4.09878]
[1730604180794,0.7797,2440.0,2439.7,4.09877]
[1730604181088,0.7797,2440.2,2439.8,4.09859]
[1730604181960,4.87772,2440.2,2439.7,4.508647]
[1730604182160,8.97587,2440.2,2439.7,4.508647]
[1730604182698,4.87772,2440.2,2439.7,4.508647]
[1730604183055,4.09824,2440.1,2439.7,4.09877]
[1730604184484,4.09838,2440.0,2439.5,4.09907]
[1730604184702,0.7797,2440.2,2439.3,4.09943]
[1730604184703,0.8004,2439.7,2439.3,4.09943]
[1730604184996,4.89928,2439.7,2439.3,4.09953]
[1730604185179,0.8004,2439.7,2439.4,4.809313]
[1730604185383,0.8004,2440.0,2439.6,4.09893]
[1730604185765,4.89876,2440.0,2439.6,4.09893]
[1730604186407,0.8004,2440.0,2439.4,4.09933]
[1730604186576,4.09899,2439.7,2439.2,4.09959]
[1730604186913,0.8004,2439.6,2439.2,4.09959]
[1730604187204,4.89949,2439.6,2439.2,4.09959]
[1730604187897,4.09945,2439.4,2438.9,4.10018]
[1730604188128,4.1,2439.1,2438.6,4.1007]
[1730604188293,4.9002,2439.2,2438.6,4.10057]
[1730604188460,4.9002,2439.2,2438.5,4.10086]
[1730604188661,4.9002,2439.2,2438.6,4.10071]
[1730604188860,0.8004,2439.2,2438.3,4.10107]
[1730604189064,4.10004,2439.0,2438.6,4.10066]
[1730604189297,4.10004,2439.0,2438.4,0.410107]
[1730604189609,4.10004,2439.0,2438.4,4.510997]
[1730604189957,4.10004,2439.0,2438.5,4.10088]
[1730604190274,4.10004,2439.0,2438.6,4.10068]
[1730604190467,4.10004,2439.0,2438.6,0.8611667]
[1730604190468,8.20016,2439.0,2438.6,0.8611667]
[1730604190667,4.10004,2439.0,2438.6,0.8611667]
[1730604191190,0.8004,2439.2,2438.4,0.410107]
[1730604191380,6.85367709,2439.4,2438.2,3.0]
[1730604191381,8.20126,2438.7,2438.2,3.0]
[1730604191701,4.10058,2438.7,2438.2,7.10137]
[1730604191917,4.10058,2438.7,2438.3,4.10119]
[1730604192209,4.90061,2438.9,2438.3,4.18320295]
[1730604192568,4.90061,2438.9,2438.3,4.10119]
[1730604192781,4.10062,2438.7,2438.3,1.120262]
[1730604193670,4.10062,2438.7,2438.3,5.221472]
[1730604194063,4.90072,2438.9,2438.4,4.10104]
[1730604194599,4.9007,2438.9,2438.3,5.221472]
[1730604194905,4.10044,2438.8,2438.3,5.221472]
[1730604195108,4.10044,2438.8,2438.4,0.8221472]
[1730604195675,4.10055,2438.7,2438.4,0.8221472]
[1730604196003,4.10055,2438.7,2438.3,5.221472]
[1730604196230,4.10038,2438.8,2438.3,5.221472]
[1730604197195,4.90072,2438.9,2438.3,5.221472]
[1730604197532,4.10038,2438.8,2438.3,5.221472]
[1730604197828,4.10038,2438.8,2438.3,9.322592]
[1730604198032,4.09976,2439.2,2438.3,9.322592]
[1730604198033,4.10018,2439.0,2438.5,4.10079]
[1730604198224,4.10018,2439.0,2438.3,4.10111]
[1730604198225,4.10039,2438.8,2438.3,4.10111]
[1730604198592,4.10039,2438.8,2438.3,8.2022]
[1730604198794,4.10039,2438.8,2438.4,1.12022]
[1730604199020,4.10039,2438.8,2438.2,3.0]
[1730604199021,4.10066,2438.7,2438.2,7.10137]
[1730604199329,4.88306,2438.7,2438.2,7.10137]
[1730604199837,4.10103,2438.5,2437.9,4.10178]
[1730604200043,0.7824,2438.7,2438.0,4.10171]
[1730604200044,4.10075,2438.6,2438.0,4.10171]
[1730604200326,4.88302,2438.7,2438.2,8.20256]
[1730604200703,4.88302,2438.7,2438.2,4.10125]
[1730604201607,3.0,2439.3,2438.5,4.10076]
[1730604201608,0.7824,2438.9,2438.5,4.10076]
[1730604201936,0.7824,2439.1,2438.8,4.10037]
[1730604202095,0.7824,2439.1,2438.7,4.10053]
[1730604203031,0.7824,2439.1,2438.6,4.510766]
[1730604203335,4.10005,2439.0,2438.6,0.410076]
[1730604203633,0.7824,2439.1,2438.7,4.10053]
[1730604204336,0.7824,2439.1,2438.7,4.9616646]
[1730604204504,4.88236,2439.1,2438.7,0.8611346]
[1730604205047,4.10039,2438.8,2438.3,4.10112]
[1730604205206,4.10039,2438.8,2438.2,4.10129]
[1730604205410,0.7824,2438.6,2438.2,4.10129]
[1730604205707,0.7824,2438.6,2438.2,8.20258]
[1730604205930,0.7824,2438.6,2438.3,4.9624751]
[1730604206208,0.7824,2438.6,2438.3,5.04449122]
[1730604207305,0.7824,2438.6,2438.3,0.94329122]
[1730604207517,4.88319,2438.6,2438.3,0.8612751]
[1730604207722,4.88319,2438.6,2438.1,7.511711]
[1730604207922,4.10092,2438.5,2438.1,0.410171]
[1730604208950,4.10092,2438.5,2438.0,4.10171]
[1730604209152,4.88319,2438.6,2438.1,4.10145]
[1730604209503,8.98399,2438.6,2438.1,4.10145]
[1730604209709,4.88319,2438.6,2438.1,4.10145]
[1730604212019,4.88319,2438.6,2438.2,4.10136]
[1730604213316,0.7824,2438.9,2438.2,0.820281]
[1730604213561,0.7824,2438.9,2437.8,5.75427709]
[1730604213562,4.88263,2438.9,2438.4,4.10089]
[1730604213766,4.09988,2439.1,2438.7,4.10053]
[1730604214824,4.09988,2439.1,2438.6,4.10069]
[1730604215033,4.10005,2439.0,2438.6,4.10069]
[1730604215264,4.88218,2439.2,2438.7,4.10045]
[1730604215463,4.09988,2439.1,2438.7,4.10045]
[1730604216455,4.09988,2439.1,2438.6,4.10069]
[1730604217140,4.09988,2439.1,2438.7,4.10047]
[1730604218357,4.10015,2439.0,2438.5,4.10076]
[1730604218565,0.7824,2439.2,2438.5,4.10076]
[1730604218566,0.7824,2439.2,2438.6,0.410076]
[1730604218864,4.09987,2439.1,2438.6,4.510656]
[1730604219670,4.10013,2439.0,2438.6,0.410076]
[1730604219823,4.10013,2439.0,2438.1,4.10144]
[1730604219824,4.10074,2438.6,2438.1,4.10144]
[1730604220028,4.10097,2438.5,2438.1,4.10144]
[1730604220566,4.10097,2438.5,2438.0,4.10171]
[1730604220887,4.10074,2438.6,2438.1,0.820348]
[1730604221025,4.10074,2438.6,2438.1,4.10143]
[1730604222578,8.20155,2438.6,2438.1,4.10143]
[1730604222774,4.10074,2438.6,2438.1,4.10143]
[1730604223271,8.20154,2438.6,2438.1,4.10143]
[1730604223974,4.10074,2438.6,2438.1,4.10143]
[1730604224265,8.20154,2438.6,2438.1,4.921744]
[1730604224773,4.10074,2438.6,2438.1,4.921744]
[1730604224944,4.88297,2438.7,2438.1,4.921744]
[1730604225125,4.88297,2438.7,2438.1,4.10143]
[1730604225331,4.88297,2438.7,2438.2,4.10138]
[1730604226542,4.10045,2438.8,2438.3,4.18312306]
[1730604226770,4.88272,2438.9,2438.4,4.10096]
[1730604226951,4.88272,2438.9,2438.3,4.1011]
[1730604226952,4.10051,2438.8,2438.3,4.1011]
[1730604227273,8.20102,2438.8,2438.3,4.1011]
[1730604227577,8.20102,2438.8,2438.3,4.921355]
[1730604227578,4.10051,2438.8,2438.3,4.921355]
[1730604227783,0.7824,2438.9,2438.4,4.10091]
[1730604228088,4.93151,2439.2,2438.6,4.1007]
[1730604228238,4.93151,2439.2,2438.8,4.10035]
[1730604229038,0.8317,2439.2,2438.8,4.10035]
[1730604229268,0.8317,2439.2,2438.9,4.10014]
[1730604229491,4.09955,2439.3,2438.8,4.10029]
[1730604229643,4.09972,2439.2,2438.8,4.10029]
[1730604229841,4.09972,2439.2,2438.8,4.92038]
[1730604230171,4.09961,2439.3,2438.8,9.02066]
[1730604230358,4.09961,2439.3,2438.9,4.10018]
[1730604231858,4.09961,2439.3,2438.8,4.92037]
[1730604232043,4.09961,2439.3,2438.8,4.10028]
[1730604232567,4.09961,2439.3,2438.9,4.10017]
[1730604232755,4.09944,2439.4,2438.9,4.10017]
[1730604233384,0.30463906,2439.3,2438.9,4.10017]
[1730604233583,4.09944,2439.4,2438.9,4.10017]
[1730604233789,0.30475331,2439.3,2438.9,4.10017]
[1730604233988,4.09944,2439.4,2439.0,4.09997]
[1730604234201,4.09944,2439.4,2438.9,4.920155]
[1730604234202,0.30475899,2439.3,2438.9,4.920155]
[1730604234490,6.19654976,2439.5,2439.0,4.09992]
[1730604234784,0.30482115,2439.4,2439.0,4.09992]
[1730604234965,0.30482115,2439.3,2439.0,4.09992]
[1730604235167,6.19654976,2439.5,2439.0,4.09992]
[1730604235377,6.19654976,2439.5,2438.6,4.1007]
[1730604235378,0.3048931,2439.4,2439.2,4.09962]
[1730604235590,1.68664149,2439.6,2439.5,4.0992]
[1730604235591,1.26563976,2439.6,2439.5,4.0992]
[1730604235762,1.26563976,2439.9,2439.6,4.09894]
[1730604236066,5.78491149,2440.1,2439.6,4.09894]
[1730604236067,1.26563976,2440.0,2439.6,4.09894]
[1730604236275,4.09883,2439.8,2439.3,4.51756166]
[1730604236468,4.09854,2439.9,2439.3,4.51756166]
[1730604236690,4.09888,2439.7,2439.3,4.0994]
[1730604237859,4.93058,2439.7,2439.3,4.0994]
[1730604238059,4.93058,2439.7,2439.3,4.09953]
[1730604238362,4.09888,2439.7,2439.3,4.09953]
[1730604239312,4.09888,2439.7,2439.2,3.0]
[1730604239603,4.09888,2439.7,2439.3,4.09953]
[1730604240167,4.0987,2439.8,2439.3,4.919368]
[1730604240368,4.0987,2439.8,2439.3,4.919358]
[1730604240858,4.0987,2439.8,2439.3,4.09949]
[1730604241261,4.93017,2440.0,2439.5,4.09909]
[1730604241484,4.09821,2440.1,2439.6,4.0989]
[1730604241826,4.09814,2440.2,2439.5,4.09908]
[1730604241827,4.92984,2440.2,2439.5,4.09908]
[1730604242158,4.09821,2440.1,2439.7,4.09886]
[1730604242408,4.09786,2440.3,2439.9,4.09845]
[1730604242964,4.9899704,2440.5,2439.9,4.09842]
[1730604243209,0.0607404,2440.5,2440.1,4.09809]
[1730604243366,0.0607404,2440.5,2440.1,8.19614]
[1730604243570,0.0607404,2440.5,2440.1,4.09805]
[1730604243915,4.09785,2440.4,2439.9,4.09841]
[1730604244115,4.1582604,2440.5,2440.0,4.09835]
[1730604244582,4.0978,2440.4,2439.9,0.4918204]
[1730604244762,4.88387,2440.4,2439.9,4.09852]
[1730604244973,0.7861,2440.4,2440.0,4.09824]
[1730604245179,0.7861,2440.4,2440.1,4.0981]
[1730604245578,0.7861,2440.4,2440.0,4.09824]
[1730604245808,0.7861,2440.4,2439.8,4.09857]
[1730604245809,4.09785,2440.3,2439.8,4.09857]
[1730604246015,4.09785,2440.3,2439.8,5.3002954]
[1730604246410,0.7861,2440.4,2439.5,4.09911]
[1730604246578,4.09832,2440.1,2439.5,4.09911]
[1730604246783,4.09832,2440.1,2439.4,4.09929]
[1730604247020,4.09832,2440.1,2439.6,4.09902]
[1730604247522,8.19667,2440.1,2439.4,4.09929]
[1730604247721,4.09853,2439.9,2439.4,8.608469]
[1730604248222,4.09853,2439.9,2439.4,4.509179]
[1730604248392,4.09853,2439.9,2439.4,4.509169]
[1730604248602,4.88447,2440.0,2439.5,4.09909]
[1730604250031,4.09853,2439.9,2439.5,4.09909]
[1730604250329,8.19661,2440.1,2439.6,4.09892]
[1730604250888,8.19661,2440.1,2439.5,4.0992]
[1730604250889,4.09843,2440.0,2439.5,4.0992]
[1730604251089,4.09829,2440.1,2439.5,4.0992]
[1730604251323,4.09836,2440.0,2439.5,4.0992]
[1730604251530,4.09836,2440.0,2439.5,8.19832]
[1730604251826,4.0982,2440.1,2439.6,4.09886]
[1730604252187,8.1965,2440.1,2439.6,4.09886]
[1730604252388,4.0982,2440.1,2439.6,4.09886]
[1730604252650,0.7861,2440.2,2439.7,0.08197449]
[1730604252854,0.7861,2440.2,2439.8,4.09861]
[1730604253267,4.09792,2440.3,2439.8,4.09861]
[1730604253763,4.09792,2440.3,2439.8,8.1972]
[1730604254059,4.09792,2440.3,2439.8,4.0986]
[1730604254950,4.09771,2440.4,2439.9,4.09845]
[1730604255262,0.8468404,2440.5,2440.1,4.0981]
[1730604255963,0.8468404,2440.5,2440.3,4.09782]
[1730604255964,0.0607404,2440.5,2440.3,4.09782]
[1730604256343,0.0607404,2440.5,2440.4,4.09768]
[1730604257064,0.0607404,2440.5,2440.4,4.17962508]
[1730604257936,0.0607404,2440.5,2440.4,4.09768]
[1730604258135,0.0607404,2440.5,2440.4,4.99917509]
[1730604259429,0.0607404,2440.5,2440.4,4.91723]
[1730604261299,0.0607404,2440.5,2440.3,4.09785]
[1730604262155,0.0607404,2440.5,2440.4,4.09768]
[1730604263212,0.0607404,2440.5,2440.4,4.17962414]
[1730604263914,0.0607404,2440.5,2440.4,7.17962414]
[1730604264196,0.0607404,2440.5,2440.4,4.09768]
[1730604264367,0.0607404,2440.5,2440.4,4.917233]
[1730604264795,0.0607404,2440.5,2440.4,0.819553]
[1730604265105,0.0607404,2440.5,2440.4,4.917233]
[1730604265788,4.9537704,2440.5,2440.0,4.51636162]
[1730604265993,0.8561404,2440.5,2440.1,4.09817]
[1730604266306,4.9536804,2440.5,2440.1,4.09817]
[1730604266517,4.09772,2440.4,2440.0,0.41804162]
[1730604266794,4.9536804,2440.5,2440.1,4.09816]
[1730604266795,0.8561404,2440.5,2440.1,4.09816]
[1730604266998,0.8561404,2440.5,2440.1,4.09811]
[1730604267207,0.8561404,2440.5,2440.1,4.95955116]
[1730604268232,4.9537604,2440.5,2440.0,4.51630162]
[1730604268438,0.8561404,2440.5,2440.0,4.51630162]
[1730604268636,0.8561404,2440.5,2440.1,4.0981]
[1730604268637,4.9536904,2440.5,2440.1,4.0981]
[1730604268937,0.8561404,2440.5,2440.0,0.41804162]
[1730604269239,0.8561404,2440.5,2440.1,0.45165216]
[1730604269439,0.8561404,2440.5,2440.1,4.54982216]
[1730604270204,0.0607404,2440.5,2440.3,4.09774]
[1730604270432,0.0607404,2440.5,2440.4,4.09768]
[1730604270637,0.0607404,2440.5,2440.4,7.09768]
[1730604270845,0.0607404,2440.5,2440.4,8.5745817]
[1730604271030,0.0607404,2440.5,2440.4,8.49264971]
[1730604271230,0.7954,2441.3,2441.0,4.09665]
[1730604271432,0.7954,2441.3,2440.9,4.09684]
[1730604272871,0.8561404,2441.8,2441.3,4.09607]
[1730604273023,4.9515504,2441.8,2441.4,0.409607]
[1730604273365,4.9515504,2441.8,2441.4,4.505587]
[1730604273926,0.8561404,2441.8,2441.4,4.505587]
[1730604274262,0.8561404,2441.8,2441.5,4.09582]
[1730604274424,0.0607404,2441.8,2441.6,4.5461127]
[1730604275043,0.0607404,2441.8,2441.6,0.4505427]
[1730604275245,0.7954,2441.7,2441.1,4.09637]
[1730604275444,4.09577,2441.6,2441.1,4.09637]
[1730604276741,0.7954,2441.7,2440.9,4.09672]
[1730604276946,0.7954,2441.5,2440.9,4.09672]
[1730604277145,4.0961,2441.4,2441.0,0.709672]
[1730604277543,4.09628,2441.3,2441.0,0.709672]
[1730604277762,4.0961,2441.4,2440.8,3.0]
[1730604277763,4.09635,2441.2,2440.8,3.0]
[1730604278769,4.09635,2441.2,2440.7,4.09708]
[1730604278770,0.7954,2441.0,2440.6,3.0]
[1730604278933,0.7954,2441.0,2440.7,4.09718]
[1730604280983,4.09696,2440.9,2440.5,3.0]
[1730604281146,4.09696,2440.9,2440.5,7.94676197]
[1730604281536,4.8921,2441.0,2440.5,7.94676197]
[1730604282073,0.7954,2441.0,2440.9,4.09684]
[1730604282293,0.7954,2441.2,2440.9,4.09684]
[1730604282575,0.7954,2441.2,2440.9,0.819392]
[1730604283177,4.89187,2441.2,2440.9,0.819392]
[1730604283380,4.89187,2441.2,2440.7,4.09708]
[1730604283823,4.89187,2441.2,2440.7,8.19419]
[1730604284477,0.7954,2441.2,2440.8,4.09692]
[1730604284680,4.89175,2441.2,2440.7,4.09708]
[1730604284880,4.89175,2441.2,2440.8,0.409708]
[1730604285705,0.7954,2441.2,2440.8,4.506638]
[1730604286513,4.89175,2441.2,2440.8,4.506638]
[1730604286710,4.89175,2441.2,2440.8,0.409708]
[1730604286893,4.89175,2441.2,2440.9,0.4506868]
[1730604287720,4.89175,2441.2,2440.8,4.506708]
[1730604287721,0.7954,2441.2,2440.8,4.506708]
[1730604288009,0.7954,2441.2,2440.8,4.506618]
[1730604288915,4.89179,2441.2,2440.8,4.506618]
[1730604290613,0.7954,2441.2,2440.8,8.603538]
[1730604290913,4.89183,2441.2,2440.8,4.506618]
[1730604291422,0.7954,2441.2,2440.9,0.4506618]
[1730604291991,4.89178,2441.2,2440.9,0.4506618]
[1730604292187,0.7954,2441.2,2440.5,0.84926197]
[1730604292388,0.7988,2440.8,2440.5,0.84926197]
[1730604292695,0.7988,2440.8,2440.6,3.0]
[1730604295624,0.7988,2440.8,2440.5,8.19485]
[1730604295625,0.7988,2440.8,2440.5,4.09742]
[1730604295828,0.7988,2440.8,2440.3,4.09774]
[1730604296188,0.7988,2440.8,2440.4,4.09757]
[1730604296531,4.89582,2440.8,2440.4,4.09757]
[1730604296692,4.89582,2440.8,2440.4,4.507327]
[1730604298070,4.09719,2440.7,2440.2,4.09802]
[1730604298244,4.09735,2440.6,2440.1,7.09809]
[1730604298448,0.7988,2440.8,2440.4,4.09768]
[1730604298449,4.89584,2440.8,2440.4,4.09768]
[1730604298743,4.89584,2440.8,2439.9,4.09849]
[1730604298744,4.89584,2440.8,2440.3,4.09783]
[1730604299482,4.09725,2440.7,2440.3,4.917422]
[1730604299685,4.09742,2440.6,2440.3,0.819592]
[1730604299975,0.7988,2440.5,2440.2,4.09799]
[1730604300274,4.09771,2440.4,2440.0,4.09829]
[1730604300485,4.09787,2440.3,2439.9,4.0985]
[1730604300648,4.09787,2440.3,2439.9,4.59408091]
[1730604300836,4.89643,2440.5,2440.0,4.09836]
[1730604301043,4.0977,2440.4,2439.9,4.59408091]
[1730604301795,4.89643,2440.5,2440.0,4.09835]
[1730604302015,4.0977,2440.4,2440.0,4.09835]
[1730604302159,4.0977,2440.4,2440.1,0.45939309]
[1730604302689,4.09804,2440.2,2439.9,0.49558091]
[1730604302864,0.7988,2440.1,2439.9,0.49558091]
[1730604303068,4.89701,2440.1,2439.9,0.49558091]
[1730604303603,0.7988,2440.1,2439.9,0.49558091]
[1730604305082,4.89699,2440.1,2439.9,0.49558091]
[1730604305389,4.89699,2440.1,2439.7,3.0]
[1730604306372,4.89699,2440.1,2439.7,7.09884]
[1730604306881,0.7988,2440.1,2439.8,4.09866]
[1730604308159,0.7988,2440.1,2439.7,7.09884]
[1730604308362,0.7988,2440.1,2439.8,0.709884]
[1730604308676,4.89699,2440.1,2439.8,0.709884]
[1730604309003,4.09854,2439.9,2439.6,3.0]
[1730604309205,4.09854,2439.9,2439.4,4.09928]
[1730604309606,0.8086,2439.7,2439.3,8.19885]
[1730604309770,0.8086,2439.7,2439.4,4.09929]
[1730604309975,0.8086,2440.1,2439.5,4.18107895]
[1730604310208,4.90679,2440.1,2439.5,4.0991]
[1730604310382,4.90679,2440.1,2439.6,4.09903]
[1730604311468,0.8086,2440.1,2439.8,4.09869]
[1730604311712,4.0978,2440.4,2439.9,4.18046385]
[1730604311713,4.9064,2440.4,2439.9,4.18046385]
[1730604311928,4.09704,2440.8,2439.4,1.67717913]
[1730604311929,0.8086,2440.2,2439.4,1.67717913]
[1730604312217,4.09921,2439.5,2439.1,4.09974]
[1730604312717,4.09921,2439.5,2438.9,4.10006]
[1730604312914,4.09954,2439.3,2438.9,4.10006]
[1730604313122,0.8086,2439.4,2438.6,0.85730913]
[1730604313123,3.56287709,2439.4,2438.6,0.85730913]
[1730604313326,3.56287709,2439.4,2438.5,4.10074]
[1730604313327,4.90879,2439.0,2438.5,4.10074]
[1730604313471,4.1002,2438.9,2438.5,5.00665591]
[1730604314313,4.90866,2439.0,2438.5,9.10745591]
[1730604314522,4.90866,2439.0,2438.1,0.85730913]
[1730604314523,4.10039,2438.8,2438.3,4.10109]
[1730604314819,0.8086,2438.7,2438.3,4.10109]
[1730604315327,0.8086,2439.0,2438.0,4.10169]
[1730604315618,0.8086,2439.0,2438.1,0.70738006]
[1730604315816,4.10047,2438.8,2438.3,4.1012]
[1730604315975,4.10047,2438.8,2438.3,5.221464]
[1730604316175,0.8086,2438.7,2438.3,5.221464]
[1730604316376,4.90929,2438.7,2438.1,7.10144]
[1730604316690,4.90929,2438.7,2437.6,0.86730913]
[1730604316889,0.8086,2438.7,2438.3,4.10118]
[1730604317477,0.8086,2438.7,2438.1,3.20266]
[1730604317678,0.8086,2438.7,2438.5,4.10084]
[1730604317891,0.7782,2439.0,2438.6,4.1007]
[1730604318215,0.7782,2439.0,2438.5,4.10084]
[1730604318216,5.64148671,2439.0,2438.5,4.10084]
[1730604318420,5.64148671,2439.0,2438.5,8.20161]
[1730604318825,0.7782,2439.0,2438.6,0.08200782]
[1730604318988,0.7782,2439.0,2438.7,4.10045]
[1730604319793,4.09965,2439.3,2438.8,7.10026]
[1730604319794,0.7782,2439.3,2438.8,7.10026]